[Event "Late-Titled-Tuesday-Blitz-October-10-2023"]
[Site "Chess.com"]
[Date "2023.10.10"]
[Round "1"]
[White "ritanovikova"]
[Black "biostatistician"]
[Result "0-1"]
[WhiteElo "2110"]
[BlackElo "2544"]
[TimeControl "180+1"]
[EndTime "14:06:33 PDT"]
[Termination "biostatistician won by resignation"]

1. e4 {[%clk 0:02:48]} 1... e5 {[%clk 0:02:45.1]} 2. Nf3 {[%clk 0:02:47.5]} 2...
Nc6 {[%clk 0:02:37.4]} 3. Bb5 {[%clk 0:02:47.1]} 3... Nf6 {[%clk 0:02:29]} 4.
O-O {[%clk 0:02:40.5]} 4... Nxe4 {[%clk 0:02:28.7]} 5. d4 {[%clk 0:02:39.2]}
5... Nd6 {[%clk 0:02:28.7]} 6. Bxc6 {[%clk 0:02:38.2]} 6... dxc6 {[%clk
0:02:27.6]} 7. dxe5 {[%clk 0:02:39.1]} 7... Nf5 {[%clk 0:02:28.1]} 8. Qxd8+
{[%clk 0:02:37.2]} 8... Kxd8 {[%clk 0:02:29]} 9. Ng5 {[%clk 0:02:36.2]} 9... Ke8
{[%clk 0:02:22.1]} 10. Nc3 {[%clk 0:02:28.9]} 10... h6 {[%clk 0:02:19.5]} 11.
Nf3 {[%clk 0:02:27.5]} 11... Be7 {[%clk 0:02:12.3]} 12. Bf4 {[%clk 0:02:19.4]}
12... Be6 {[%clk 0:02:11.8]} 13. Ne4 {[%clk 0:02:18.1]} 13... Rd8 {[%clk
0:02:05.9]} 14. c3 {[%clk 0:01:55.3]} 14... Bd5 {[%clk 0:02:03.2]} 15. Ng3
{[%clk 0:01:48.4]} 15... Nxg3 {[%clk 0:01:49.6]} 16. hxg3 {[%clk 0:01:46.7]}
16... c5 {[%clk 0:01:39.9]} 17. b3 {[%clk 0:01:43.1]} 17... c4 {[%clk
0:01:37.1]} 18. b4 {[%clk 0:01:41.5]} 18... Bxf3 {[%clk 0:01:34.1]} 19. gxf3
{[%clk 0:01:41.3]} 19... Rd3 {[%clk 0:01:35]} 20. Rac1 {[%clk 0:01:38.9]} 20...
Kd7 {[%clk 0:01:33.4]} 21. Rfd1 {[%clk 0:01:38.3]} 21... Rd8 {[%clk 0:01:33.4]}
22. Rxd3+ {[%clk 0:01:37.6]} 22... cxd3 {[%clk 0:01:34.3]} 23. Rd1 {[%clk
0:01:37.5]} 23... Ke6 {[%clk 0:01:34.1]} 24. Kf1 {[%clk 0:01:31.8]} 24... g5
{[%clk 0:01:32.1]} 25. Be3 {[%clk 0:01:31.6]} 25... Kxe5 {[%clk 0:01:27.7]} 26.
f4+ {[%clk 0:01:32]} 26... Kf5 {[%clk 0:01:25.7]} 27. fxg5 {[%clk 0:01:28.9]}
27... hxg5 {[%clk 0:01:26.6]} 28. f3 {[%clk 0:01:25.2]} 28... g4 {[%clk
0:01:25.3]} 29. Kf2 {[%clk 0:01:23.6]} 29... Bf6 {[%clk 0:01:25]} 30. Bd2 {[%clk
0:01:16.9]} 30... Re8 {[%clk 0:01:20.8]} 31. Re1 {[%clk 0:01:11.8]} 31... Rxe1
{[%clk 0:01:19.7]} 32. Bxe1 {[%clk 0:01:12]} 32... gxf3 {[%clk 0:01:14.5]} 33.
Kxf3 {[%clk 0:01:10.9]} 33... Bg5 {[%clk 0:01:14.9]} 34. g4+ {[%clk 0:01:09.5]}
34... Ke6 {[%clk 0:01:08]} 35. Bg3 {[%clk 0:01:01.1]} 35... c6 {[%clk
0:01:08.1]} 36. Bf2 {[%clk 0:00:50.4]} 36... a6 {[%clk 0:01:07.9]} 37. a4 {[%clk
0:00:45.9]} 37... Kd5 {[%clk 0:01:07.5]} 38. Bd4 {[%clk 0:00:43.1]} 38... Kc4
{[%clk 0:01:05.5]} 39. a5 {[%clk 0:00:39.2]} 39... Kb3 {[%clk 0:01:04.9]} 40.
Kf2 {[%clk 0:00:35.5]} 40... d2 {[%clk 0:01:01.4]} 41. Ke2 {[%clk 0:00:33.9]}
41... Kc2 {[%clk 0:01:01.5]} 0-1

[Event "Late-Titled-Tuesday-Blitz-October-10-2023"]
[Site "Chess.com"]
[Date "2023.10.10"]
[Round "1"]
[White "dretch"]
[Black "schack_vit"]
[Result "0-1"]
[WhiteElo "2842"]
[BlackElo "2465"]
[TimeControl "180+1"]
[EndTime "14:06:34 PDT"]
[Termination "schack_vit won by checkmate"]

1. d4 {[%clk 0:02:48.9]} 1... d5 {[%clk 0:02:51.8]} 2. c4 {[%clk 0:02:49.1]}
2... c6 {[%clk 0:02:51.6]} 3. Nc3 {[%clk 0:02:49.2]} 3... Nf6 {[%clk 0:02:51.9]}
4. e3 {[%clk 0:02:49.5]} 4... e6 {[%clk 0:02:52]} 5. Bd3 {[%clk 0:02:49.3]} 5...
Nbd7 {[%clk 0:02:51.3]} 6. e4 {[%clk 0:02:46.8]} 6... dxe4 {[%clk 0:02:49.9]} 7.
Nxe4 {[%clk 0:02:47]} 7... Nxe4 {[%clk 0:02:47.2]} 8. Bxe4 {[%clk 0:02:47.4]}
8... Nf6 {[%clk 0:02:47.8]} 9. Bc2 {[%clk 0:02:47.5]} 9... c5 {[%clk 0:02:43.1]}
10. Nf3 {[%clk 0:02:45.6]} 10... cxd4 {[%clk 0:02:41.1]} 11. O-O {[%clk
0:02:45.4]} 11... Bc5 {[%clk 0:02:37.7]} 12. Bg5 {[%clk 0:02:45]} 12... h6
{[%clk 0:02:37]} 13. Ba4+ {[%clk 0:02:39.2]} 13... Bd7 {[%clk 0:02:36.4]} 14.
Bxd7+ {[%clk 0:02:13.1]} 14... Qxd7 {[%clk 0:02:35.7]} 15. Ne5 {[%clk
0:02:13.3]} 15... Qc7 {[%clk 0:02:27.7]} 16. Bxf6 {[%clk 0:02:08.9]} 16... gxf6
{[%clk 0:02:27.8]} 17. Qa4+ {[%clk 0:02:08]} 17... Ke7 {[%clk 0:02:28.1]} 18.
Nd3 {[%clk 0:02:07.1]} 18... Bd6 {[%clk 0:02:22.1]} 19. h3 {[%clk 0:02:05.4]}
19... Rhg8 {[%clk 0:02:19.6]} 20. c5 {[%clk 0:02:00.3]} 20... Be5 {[%clk
0:02:16]} 21. Rfe1 {[%clk 0:01:58.4]} 21... Qc6 {[%clk 0:02:14.1]} 22. Qxc6
{[%clk 0:01:56.3]} 22... bxc6 {[%clk 0:02:15]} 23. Rad1 {[%clk 0:01:42.2]} 23...
Rab8 {[%clk 0:02:12.6]} 24. Re4 {[%clk 0:01:39.3]} 24... Rgd8 {[%clk 0:02:02.3]}
25. Rh4 {[%clk 0:01:34.4]} 25... Rh8 {[%clk 0:01:58.6]} 26. b3 {[%clk
0:01:29.1]} 26... Rbd8 {[%clk 0:01:55.3]} 27. f4 {[%clk 0:01:21.7]} 27... Bb8
{[%clk 0:01:46.9]} 28. Nb4 {[%clk 0:01:20.7]} 28... Rc8 {[%clk 0:01:14.4]} 29.
Rxd4 {[%clk 0:01:17.9]} 29... a5 {[%clk 0:01:14]} 30. Nd3 {[%clk 0:00:56.5]}
30... Ba7 {[%clk 0:01:09.3]} 31. Ra4 {[%clk 0:00:55.6]} 31... Rcd8 {[%clk
0:01:09]} 32. Rxa5 {[%clk 0:00:55.7]} 32... Bb8 {[%clk 0:01:05.6]} 33. Nb4
{[%clk 0:00:54.1]} 33... Rd1+ {[%clk 0:00:55.7]} 34. Kf2 {[%clk 0:00:51.5]}
34... Rd2+ {[%clk 0:00:53.4]} 35. Kf3 {[%clk 0:00:48.5]} 35... Bc7 {[%clk
0:00:48.8]} 36. Ra7 {[%clk 0:00:46.1]} 36... Kd7 {[%clk 0:00:42.3]} 37. f5
{[%clk 0:00:41.2]} 37... Rg8 {[%clk 0:00:38.8]} 38. fxe6+ {[%clk 0:00:30.9]}
38... fxe6 {[%clk 0:00:35.5]} 39. Rxh6 {[%clk 0:00:30.4]} 39... Rg3+ {[%clk
0:00:28.9]} 40. Ke4 {[%clk 0:00:30.7]} 40... f5# {[%clk 0:00:29.2]} 0-1

[Event "Late-Titled-Tuesday-Blitz-October-10-2023"]
[Site "Chess.com"]
[Date "2023.10.10"]
[Round "1"]
[White "Chessdreamer2020"]
[Black "Horokoskii"]
[Result "1-0"]
[WhiteElo "2543"]
[BlackElo "2095"]
[TimeControl "180+1"]
[EndTime "14:06:34 PDT"]
[Termination "Chessdreamer2020 won by resignation"]

1. e4 {[%clk 0:03:00.9]} 1... e6 {[%clk 0:03:00]} 2. b3 {[%clk 0:03:00.2]} 2...
d5 {[%clk 0:02:59.5]} 3. Bb2 {[%clk 0:03:00.7]} 3... Nf6 {[%clk 0:02:59.2]} 4.
e5 {[%clk 0:03:00.7]} 4... Nfd7 {[%clk 0:02:59.1]} 5. f4 {[%clk 0:03:01.6]} 5...
c5 {[%clk 0:03:00]} 6. Qg4 {[%clk 0:03:00.6]} 6... Nc6 {[%clk 0:02:59.1]} 7. Nf3
{[%clk 0:03:00.9]} 7... h5 {[%clk 0:02:58.4]} 8. Qg3 {[%clk 0:03:00.7]} 8... b6
{[%clk 0:02:56.2]} 9. Nc3 {[%clk 0:02:59.9]} 9... a6 {[%clk 0:02:53.1]} 10. Be2
{[%clk 0:02:58.6]} 10... Bb7 {[%clk 0:02:52.6]} 11. O-O {[%clk 0:02:58.6]} 11...
h4 {[%clk 0:02:52.4]} 12. Qg4 {[%clk 0:02:55.9]} 12... h3 {[%clk 0:02:52.1]} 13.
g3 {[%clk 0:02:51.4]} 13... Nb4 {[%clk 0:02:45.8]} 14. Rac1 {[%clk 0:02:49.1]}
14... Rc8 {[%clk 0:02:42.9]} 15. a3 {[%clk 0:02:48.7]} 15... Nc6 {[%clk
0:02:41.6]} 16. Ng5 {[%clk 0:02:49]} 16... Nd4 {[%clk 0:02:14]} 17. Bd3 {[%clk
0:02:34.9]} 17... c4 {[%clk 0:02:07.3]} 18. bxc4 {[%clk 0:02:31.7]} 18... dxc4
{[%clk 0:02:06.7]} 19. Be4 {[%clk 0:02:32.1]} 19... Bxe4 {[%clk 0:01:58.2]} 20.
Ncxe4 {[%clk 0:02:33]} 20... Nc5 {[%clk 0:01:56.2]} 21. f5 {[%clk 0:02:15.7]}
21... Be7 {[%clk 0:01:46.3]} 22. f6 {[%clk 0:02:13.4]} 22... gxf6 {[%clk
0:01:44.1]} 23. Nxf6+ {[%clk 0:02:12]} 23... Bxf6 {[%clk 0:01:42.1]} 24. Rxf6
{[%clk 0:02:12.3]} 24... Nf5 {[%clk 0:01:22.1]} 25. Nxf7 {[%clk 0:02:06.9]}
25... Qxd2 {[%clk 0:01:14.6]} 26. Qf3 {[%clk 0:01:32.5]} 26... Rf8 {[%clk
0:00:58.5]} 27. Nd6+ {[%clk 0:01:29]} 27... Nxd6 {[%clk 0:00:55]} 28. Rxf8+
{[%clk 0:01:28.8]} 28... Kd7 {[%clk 0:00:53.9]} 29. Rf7+ {[%clk 0:01:20.2]}
29... Nxf7 {[%clk 0:00:52.9]} 30. Rd1 {[%clk 0:01:20.6]} 30... Qxd1+ {[%clk
0:00:46.2]} 31. Qxd1+ {[%clk 0:01:20.6]} 31... Kc7 {[%clk 0:00:44.8]} 32. Qh5
{[%clk 0:01:16.8]} 32... Nd8 {[%clk 0:00:43.1]} 33. Qxh3 {[%clk 0:01:14.4]}
33... Nc6 {[%clk 0:00:43.1]} 34. Qh7+ {[%clk 0:01:14.1]} 34... Kb8 {[%clk
0:00:42.5]} 35. h4 {[%clk 0:01:13.6]} 35... Rf8 {[%clk 0:00:41.1]} 36. h5 {[%clk
0:01:13]} 36... Rd8 {[%clk 0:00:36.9]} 37. h6 {[%clk 0:01:11.2]} 37... Rd7
{[%clk 0:00:37.3]} 38. Qg8+ {[%clk 0:01:10.7]} 38... Kb7 {[%clk 0:00:37.4]} 39.
h7 {[%clk 0:01:11.2]} 39... Rd1+ {[%clk 0:00:34.9]} 40. Kh2 {[%clk 0:01:11.6]}
40... Rd2+ {[%clk 0:00:35.1]} 41. Kh3 {[%clk 0:01:12.2]} 41... Ne7 {[%clk
0:00:19.4]} 42. Qg7 {[%clk 0:01:08.4]} 1-0

[Event "Late-Titled-Tuesday-Blitz-October-10-2023"]
[Site "Chess.com"]
[Date "2023.10.10"]
[Round "1"]
[White "Dontmesswithme_2"]
[Black "DopplerCharlotteDeWitte"]
[Result "0-1"]
[WhiteElo "2421"]
[BlackElo "2791"]
[TimeControl "180+1"]
[EndTime "14:06:36 PDT"]
[Termination "DopplerCharlotteDeWitte won on time"]

1. d4 {[%clk 0:02:59.8]} 1... d5 {[%clk 0:02:59.7]} 2. c4 {[%clk 0:02:59.4]}
2... e6 {[%clk 0:02:59.8]} 3. Nf3 {[%clk 0:02:56.4]} 3... Nf6 {[%clk 0:03:00]}
4. g3 {[%clk 0:02:56.6]} 4... dxc4 {[%clk 0:03:00.6]} 5. Bg2 {[%clk 0:02:56.8]}
5... c6 {[%clk 0:03:01.2]} 6. Ne5 {[%clk 0:02:51.1]} 6... Bb4+ {[%clk
0:03:00.7]} 7. Nc3 {[%clk 0:02:50.3]} 7... Nd5 {[%clk 0:02:59.5]} 8. Qc2 {[%clk
0:02:43.7]} 8... Nxc3 {[%clk 0:02:59.4]} 9. bxc3 {[%clk 0:02:43.1]} 9... Qxd4
{[%clk 0:03:00.1]} 10. Bb2 {[%clk 0:02:17.3]} 10... Ba5 {[%clk 0:02:47.9]} 11.
Nf3 {[%clk 0:01:56.4]} 11... Qf6 {[%clk 0:02:44.1]} 12. O-O {[%clk 0:01:43.6]}
12... O-O {[%clk 0:02:42.2]} 13. Qa4 {[%clk 0:01:43.4]} 13... Bc7 {[%clk
0:02:38.6]} 14. Qxc4 {[%clk 0:01:43.1]} 14... Nd7 {[%clk 0:02:33.7]} 15. a4
{[%clk 0:01:40]} 15... e5 {[%clk 0:02:30.4]} 16. a5 {[%clk 0:01:38.9]} 16... Re8
{[%clk 0:02:29.1]} 17. Nd2 {[%clk 0:01:38.1]} 17... Qe6 {[%clk 0:02:27.6]} 18.
Rfd1 {[%clk 0:01:24.5]} 18... Nf6 {[%clk 0:02:08]} 19. a6 {[%clk 0:01:18.4]}
19... Bb6 {[%clk 0:02:01.3]} 20. Qxe6 {[%clk 0:01:10.6]} 20... Rxe6 {[%clk
0:02:02.2]} 21. Bh3 {[%clk 0:00:38]} 21... Re8 {[%clk 0:02:00.6]} 22. Bxc8
{[%clk 0:00:36.3]} 22... Raxc8 {[%clk 0:02:01.5]} 23. axb7 {[%clk 0:00:36.2]}
23... Rb8 {[%clk 0:02:01.9]} 24. Nc4 {[%clk 0:00:36.1]} 24... Ne4 {[%clk
0:01:46.5]} 25. Nxb6 {[%clk 0:00:24.4]} 25... axb6 {[%clk 0:01:47.4]} 26. Ra7
{[%clk 0:00:21.6]} 26... f6 {[%clk 0:01:32.3]} 27. Ba3 {[%clk 0:00:18.9]} 27...
Nxc3 {[%clk 0:01:29.3]} 28. Bd6 {[%clk 0:00:12.8]} 28... Rbd8 {[%clk 0:01:23.6]}
29. Rb1 {[%clk 0:00:05.3]} 29... Nxb1 {[%clk 0:01:22.3]} 30. Bc7 {[%clk
0:00:03.6]} 30... Rc8 {[%clk 0:00:57]} 31. bxc8=Q {[%clk 0:00:02.5]} 31... Rxc8
{[%clk 0:00:57.9]} 32. Bxb6 {[%clk 0:00:03]} 32... Nc3 {[%clk 0:00:58.7]} 33.
Kf1 {[%clk 0:00:02]} 33... h5 {[%clk 0:00:55.9]} 34. Rd7 {[%clk 0:00:01.9]}
34... Nd5 {[%clk 0:00:53.5]} 35. Bc5 {[%clk 0:00:01.7]} 35... Rc7 {[%clk
0:00:53.8]} 36. Rd8+ {[%clk 0:00:01.4]} 36... Kf7 {[%clk 0:00:54.4]} 37. e4
{[%clk 0:00:01.2]} 37... Nc3 {[%clk 0:00:54]} 38. f3 {[%clk 0:00:01.1]} 38...
Rb7 {[%clk 0:00:53.9]} 0-1

[Event "Late-Titled-Tuesday-Blitz-October-10-2023"]
[Site "Chess.com"]
[Date "2023.10.10"]
[Round "1"]
[White "Jospem"]
[Black "GlavkonVVS"]
[Result "1-0"]
[WhiteElo "3109"]
[BlackElo "2521"]
[TimeControl "180+1"]
[EndTime "14:06:41 PDT"]
[Termination "Jospem won by resignation"]

1. e4 {[%clk 0:03:00.9]} 1... Nf6 {[%clk 0:03:00.2]} 2. e5 {[%clk 0:03:00]} 2...
Nd5 {[%clk 0:03:00.5]} 3. d4 {[%clk 0:03:00.7]} 3... d6 {[%clk 0:03:00.7]} 4.
Nf3 {[%clk 0:03:01.4]} 4... Bg4 {[%clk 0:03:00.5]} 5. Be2 {[%clk 0:03:01.5]}
5... e6 {[%clk 0:03:00.8]} 6. O-O {[%clk 0:03:01.3]} 6... Be7 {[%clk 0:03:01.2]}
7. c4 {[%clk 0:03:00.6]} 7... Nb6 {[%clk 0:03:01.2]} 8. exd6 {[%clk 0:03:01.2]}
8... cxd6 {[%clk 0:03:02.1]} 9. Nc3 {[%clk 0:03:00.4]} 9... O-O {[%clk
0:03:02.2]} 10. h3 {[%clk 0:03:00.6]} 10... Bh5 {[%clk 0:03:00.7]} 11. Be3
{[%clk 0:02:56.4]} 11... d5 {[%clk 0:03:00.5]} 12. c5 {[%clk 0:02:45]} 12...
Bxf3 {[%clk 0:03:00.6]} 13. Bxf3 {[%clk 0:02:44.5]} 13... Nc8 {[%clk 0:02:58.5]}
14. b4 {[%clk 0:02:42.6]} 14... Bf6 {[%clk 0:02:58.8]} 15. Qd3 {[%clk
0:02:40.5]} 15... Nc6 {[%clk 0:02:59]} 16. b5 {[%clk 0:02:39.9]} 16... Na5
{[%clk 0:02:59.4]} 17. Bf4 {[%clk 0:02:36.8]} 17... Ne7 {[%clk 0:02:58.4]} 18.
Ne2 {[%clk 0:02:29.8]} 18... Nf5 {[%clk 0:02:54.8]} 19. Bg4 {[%clk 0:02:29.5]}
19... Ne7 {[%clk 0:02:54.4]} 20. a4 {[%clk 0:02:28.6]} 20... g6 {[%clk
0:02:54.6]} 21. Rfe1 {[%clk 0:02:28.7]} 21... h5 {[%clk 0:02:54.4]} 22. Bf3
{[%clk 0:02:28.6]} 22... Nf5 {[%clk 0:02:54.8]} 23. g4 {[%clk 0:02:26.6]} 23...
hxg4 {[%clk 0:02:51.2]} 24. hxg4 {[%clk 0:02:27.5]} 24... Nh4 {[%clk 0:02:50.2]}
25. Bg2 {[%clk 0:02:27.8]} 25... g5 {[%clk 0:02:49.5]} 26. Bg3 {[%clk
0:02:27.9]} 26... Ng6 {[%clk 0:02:49.3]} 27. Rac1 {[%clk 0:02:25.5]} 27... Rc8
{[%clk 0:02:48.6]} 28. Bf3 {[%clk 0:02:20.6]} 28... Kg7 {[%clk 0:02:46.9]} 29.
Kg2 {[%clk 0:02:20.2]} 29... Rh8 {[%clk 0:02:45.1]} 30. Rh1 {[%clk 0:02:20.9]}
30... Nh4+ {[%clk 0:02:39.8]} 31. Bxh4 {[%clk 0:02:20.8]} 31... Rxh4 {[%clk
0:02:39.3]} 32. Rxh4 {[%clk 0:02:19.2]} 32... gxh4 {[%clk 0:02:39.7]} 33. Kh3
{[%clk 0:02:20.1]} 33... Bg5 {[%clk 0:02:39.1]} 34. Rc2 {[%clk 0:02:11.4]} 34...
Qf6 {[%clk 0:02:39.1]} 35. Kg2 {[%clk 0:02:06.4]} 35... b6 {[%clk 0:02:32]} 36.
c6 {[%clk 0:02:05.5]} 36... Nc4 {[%clk 0:02:31.3]} 37. Ng1 {[%clk 0:02:03.5]}
37... a6 {[%clk 0:02:23.9]} 38. Nh3 {[%clk 0:02:01.7]} 38... axb5 {[%clk
0:02:24.1]} 39. axb5 {[%clk 0:02:02.3]} 39... Rc7 {[%clk 0:02:23.1]} 40. Ra2
{[%clk 0:01:58.8]} 40... Nd6 {[%clk 0:02:18.8]} 41. Ra6 {[%clk 0:01:58]} 41...
Nc8 {[%clk 0:02:16.2]} 42. Be2 {[%clk 0:01:56.3]} 42... Bf4 {[%clk 0:02:09.3]}
43. Qd1 {[%clk 0:01:51.6]} 43... Bd6 {[%clk 0:02:07.7]} 44. Qd2 {[%clk
0:01:51.6]} 44... Qg6 {[%clk 0:02:03.1]} 45. f3 {[%clk 0:01:51.8]} 45... Qf6
{[%clk 0:01:55.5]} 46. f4 {[%clk 0:01:48.2]} 46... Qg6 {[%clk 0:01:53.1]} 47.
Ra1 {[%clk 0:01:38.4]} 47... f5 {[%clk 0:01:42]} 48. g5 {[%clk 0:01:37.8]} 48...
Ne7 {[%clk 0:01:32.2]} 49. Qe3 {[%clk 0:01:35.9]} 49... Kf7 {[%clk 0:01:27.3]}
50. Ra6 {[%clk 0:01:36.1]} 50... Nc8 {[%clk 0:01:26.7]} 51. Bf3 {[%clk
0:01:33.3]} 51... Re7 {[%clk 0:01:21.9]} 52. Qe2 {[%clk 0:01:33.5]} 52... Kf8
{[%clk 0:01:20.4]} 53. Ra8 {[%clk 0:01:31.6]} 53... Rc7 {[%clk 0:01:20.3]} 54.
Bh5 {[%clk 0:01:28.9]} 54... Qh7 {[%clk 0:01:17.6]} 55. Qxe6 {[%clk 0:01:24.5]}
55... Qxh5 {[%clk 0:01:17.1]} 56. Qxd6+ {[%clk 0:01:13.2]} 56... Kf7 {[%clk
0:01:01]} 57. Qxc7+ {[%clk 0:00:56.7]} 57... Ne7 {[%clk 0:01:01.1]} 58. Ra3
{[%clk 0:00:52.2]} 58... Qe2+ {[%clk 0:00:59.3]} 59. Nf2 {[%clk 0:00:47.9]}
59... h3+ {[%clk 0:00:59]} 60. Rxh3 {[%clk 0:00:47.9]} 1-0

[Event "Late-Titled-Tuesday-Blitz-October-10-2023"]
[Site "Chess.com"]
[Date "2023.10.10"]
[Round "1"]
[White "PatzerSmashers"]
[Black "mbojan"]
[Result "0-1"]
[WhiteElo "2418"]
[BlackElo "2767"]
[TimeControl "180+1"]
[EndTime "14:06:41 PDT"]
[Termination "mbojan won on time"]

1. d4 {[%clk 0:03:00.9]} 1... g6 {[%clk 0:02:59.6]} 2. e4 {[%clk 0:03:00.6]}
2... Nf6 {[%clk 0:02:59.4]} 3. e5 {[%clk 0:02:58.8]} 3... Nh5 {[%clk 0:02:59.1]}
4. Nf3 {[%clk 0:02:48.4]} 4... d6 {[%clk 0:02:58.2]} 5. Bc4 {[%clk 0:02:44.3]}
5... Nc6 {[%clk 0:02:57.7]} 6. exd6 {[%clk 0:02:15.3]} 6... Qxd6 {[%clk
0:02:56.6]} 7. c3 {[%clk 0:02:14.5]} 7... Bg7 {[%clk 0:02:56.2]} 8. O-O {[%clk
0:02:13.6]} 8... O-O {[%clk 0:02:56.5]} 9. Re1 {[%clk 0:02:10.4]} 9... e5 {[%clk
0:02:56.4]} 10. dxe5 {[%clk 0:02:09.6]} 10... Nxe5 {[%clk 0:02:56.4]} 11. Nxe5
{[%clk 0:02:07.5]} 11... Bxe5 {[%clk 0:02:56.1]} 12. Qxd6 {[%clk 0:02:02.1]}
12... cxd6 {[%clk 0:02:53.9]} 13. Nd2 {[%clk 0:01:53.5]} 13... Be6 {[%clk
0:02:34.2]} 14. Bxe6 {[%clk 0:01:43.9]} 14... fxe6 {[%clk 0:02:35.1]} 15. Nf3
{[%clk 0:01:44.4]} 15... Rad8 {[%clk 0:02:31.6]} 16. Bg5 {[%clk 0:01:40.2]}
16... Bf6 {[%clk 0:02:24.4]} 17. Rxe6 {[%clk 0:01:37.6]} 17... Bxg5 {[%clk
0:02:23.9]} 18. Nxg5 {[%clk 0:01:38.5]} 18... Nf4 {[%clk 0:02:23.8]} 19. Re7
{[%clk 0:01:33.4]} 19... Rf5 {[%clk 0:02:08.4]} 20. h4 {[%clk 0:00:59.5]} 20...
h6 {[%clk 0:01:43.9]} 21. Ne6 {[%clk 0:00:44.2]} 21... Re5 {[%clk 0:01:42.6]}
22. Rg7+ {[%clk 0:00:25.8]} 22... Kh8 {[%clk 0:01:42]} 23. Nxd8 {[%clk
0:00:20.1]} 23... Kxg7 {[%clk 0:01:39.8]} 24. Nxb7 {[%clk 0:00:20.8]} 24... Rb5
{[%clk 0:01:33.6]} 25. Nxd6 {[%clk 0:00:20]} 25... Rxb2 {[%clk 0:01:34.1]} 26.
Ne4 {[%clk 0:00:16.7]} 26... Re2 {[%clk 0:01:29.7]} 27. Ng3 {[%clk 0:00:10.1]}
27... Rc2 {[%clk 0:01:28.1]} 28. Rb1 {[%clk 0:00:09.3]} 28... Rxa2 {[%clk
0:01:23.6]} 29. Ne4 {[%clk 0:00:05.4]} 29... Kf7 {[%clk 0:01:18.6]} 30. Rb7+
{[%clk 0:00:05.5]} 30... Ke6 {[%clk 0:01:19.1]} 31. Nc5+ {[%clk 0:00:04.6]}
31... Kd5 {[%clk 0:01:19]} 32. Nd7 {[%clk 0:00:03.9]} 32... Nd3 {[%clk
0:01:16.6]} 33. Nf8 {[%clk 0:00:03.3]} 33... Nxf2 {[%clk 0:01:13.3]} 34. Nxg6
{[%clk 0:00:03.1]} 34... Ng4 {[%clk 0:01:13.7]} 35. g3 {[%clk 0:00:02.3]} 35...
Ke4 {[%clk 0:01:12.8]} 36. Rf7 {[%clk 0:00:01.8]} 36... Ne3 {[%clk 0:01:11.8]}
37. Rf4+ {[%clk 0:00:02.2]} 37... Kd3 {[%clk 0:01:12.3]} 38. Ne5+ {[%clk
0:00:01.8]} 38... Kxc3 {[%clk 0:01:11.5]} 39. g4 {[%clk 0:00:02.3]} 39... a5
{[%clk 0:01:09.3]} 40. Re4 {[%clk 0:00:01.4]} 40... Kd2 {[%clk 0:01:06.6]} 0-1

[Event "Late-Titled-Tuesday-Blitz-October-10-2023"]
[Site "Chess.com"]
[Date "2023.10.10"]
[Round "1"]
[White "Aygehovit1992"]
[Black "acertijo08"]
[Result "1-0"]
[WhiteElo "2694"]
[BlackElo "2377"]
[TimeControl "180+1"]
[EndTime "14:06:41 PDT"]
[Termination "Aygehovit1992 won by resignation"]

1. e4 {[%clk 0:02:55.6]} 1... c5 {[%clk 0:02:59.5]} 2. Nc3 {[%clk 0:02:54.9]}
2... Nc6 {[%clk 0:02:59.1]} 3. Bb5 {[%clk 0:02:54.8]} 3... g6 {[%clk 0:02:57.5]}
4. Bxc6 {[%clk 0:02:53.7]} 4... bxc6 {[%clk 0:02:57.8]} 5. f4 {[%clk 0:02:54.4]}
5... Bg7 {[%clk 0:02:57.9]} 6. Nf3 {[%clk 0:02:55.3]} 6... d5 {[%clk 0:02:56.1]}
7. d3 {[%clk 0:02:51.7]} 7... Nf6 {[%clk 0:02:43]} 8. Qe2 {[%clk 0:02:46.5]}
8... O-O {[%clk 0:02:41]} 9. O-O {[%clk 0:02:46.1]} 9... Rb8 {[%clk 0:02:29.1]}
10. Rb1 {[%clk 0:02:14.3]} 10... Ba6 {[%clk 0:01:53.6]} 11. e5 {[%clk
0:02:00.8]} 11... Ne8 {[%clk 0:01:49.2]} 12. b3 {[%clk 0:01:42.6]} 12... Nc7
{[%clk 0:01:48.1]} 13. Na4 {[%clk 0:01:35]} 13... c4 {[%clk 0:01:39.1]} 14. Nc5
{[%clk 0:01:32.8]} 14... cxd3 {[%clk 0:01:34.4]} 15. cxd3 {[%clk 0:01:33.7]}
15... Bc8 {[%clk 0:01:26.7]} 16. Nd4 {[%clk 0:01:32.3]} 16... Rb6 {[%clk
0:01:17.1]} 17. f5 {[%clk 0:01:30.8]} 17... Nb5 {[%clk 0:01:00.3]} 18. Bb2
{[%clk 0:00:47]} 18... Nxd4 {[%clk 0:00:53.5]} 19. Bxd4 {[%clk 0:00:47.9]} 19...
Bxf5 {[%clk 0:00:50.8]} 20. Rf4 {[%clk 0:00:46.2]} 20... h5 {[%clk 0:00:32.3]}
21. Rbf1 {[%clk 0:00:44.7]} 21... e6 {[%clk 0:00:31.2]} 22. h3 {[%clk
0:00:45.2]} 22... h4 {[%clk 0:00:30.5]} 23. Qf2 {[%clk 0:00:42.7]} 23... Qc7
{[%clk 0:00:25.7]} 24. Re1 {[%clk 0:00:39]} 24... Rb4 {[%clk 0:00:25.3]} 25.
Rxh4 {[%clk 0:00:37.7]} 25... Rxd4 {[%clk 0:00:19.5]} 26. Qxd4 {[%clk
0:00:38.6]} 26... Qe7 {[%clk 0:00:10.7]} 27. Rf4 {[%clk 0:00:36.2]} 27... Rb8
{[%clk 0:00:10.2]} 28. g4 {[%clk 0:00:35.5]} 28... g5 {[%clk 0:00:08.1]} 29.
gxf5 {[%clk 0:00:34.7]} 29... gxf4 {[%clk 0:00:08]} 30. f6 {[%clk 0:00:35.2]}
30... Bxf6 {[%clk 0:00:08.3]} 31. exf6 {[%clk 0:00:35.1]} 31... Qd6 {[%clk
0:00:08.7]} 32. Re5 {[%clk 0:00:34.2]} 1-0